[Event "December 19 Early 2023"]
[Site "https://www.chess.com"]
[Date "2023.12.19"]
[Round "3"]
[White "Can, Melih Kaan"]
[Black "Putri, Regita Desyari"]
[Result "0-1"]
[Board "226"]
[TimeControl "180+1"]
[WhiteFideId "6317383"]
[BlackFideId "7109083"]
[WhiteElo "2022"]
[BlackElo "1930"]
[WhiteTeam "TUR"]
[BlackTeam "INA"]
[WhiteClock "0:00:12"]
[BlackClock "0:00:26"]

1. e4 {[%clk 0:02:56]}  e5 {[%clk 0:02:58]} 2. Nf3 {[%clk 0:02:56]}  Nc6 {[%clk 0:02:57]} 3. d4 {[%clk 0:02:56]}  exd4 {[%clk 0:02:57]} 4. Nxd4 {[%clk 0:02:57]}  Bc5 {[%clk 0:02:56]} 5. Nb3 {[%clk 0:02:57]}  Bb6 {[%clk 0:02:56]} 6. Nc3 {[%clk 0:02:57]}  d6 {[%clk 0:02:54]} 7. Qe2 {[%clk 0:02:56]}  h6 {[%clk 0:02:46]} 8. Be3 {[%clk 0:02:55]}  Nf6 {[%clk 0:02:45]} 9. O-O-O {[%clk 0:02:54]}  Qe7 {[%clk 0:02:44]} 10. f3 {[%clk 0:02:52]}  Be6 {[%clk 0:02:38]} 11. Qf2 {[%clk 0:02:38]}  O-O {[%clk 0:02:29]} 12. h4 {[%clk 0:02:32]}  Nh7 {[%clk 0:02:17]} 13. g4 {[%clk 0:02:26]}  Bxe3+ {[%clk 0:01:57]} 14. Qxe3 {[%clk 0:02:26]}  a5 {[%clk 0:01:58]} 15. Nd5 {[%clk 0:01:56]}  Bxd5 {[%clk 0:01:55]} 16. Rxd5 {[%clk 0:01:56]}  a4 {[%clk 0:01:51]} 17. Nd4 {[%clk 0:01:56]}  a3 {[%clk 0:01:40]} 18. b3 {[%clk 0:01:48]}  Nb4 {[%clk 0:01:32]} 19. Rb5 {[%clk 0:01:47]}  c5 {[%clk 0:01:24]} 20. Nf5 {[%clk 0:01:34]}  Qe5 {[%clk 0:01:18]} 21. Rxb4 {[%clk 0:01:26]}  Qb2+ {[%clk 0:01:13]} 22. Kd2 {[%clk 0:01:20]}  cxb4 {[%clk 0:01:13]} 23. Bc4 {[%clk 0:01:01]}  Rac8 {[%clk 0:01:00]} 24. Ne7+ {[%clk 0:00:57]}  Kh8 {[%clk 0:00:58]} 25. Nxc8 {[%clk 0:00:57]}  Rxc8 {[%clk 0:00:59]} 26. g5 {[%clk 0:00:52]}  h5 {[%clk 0:00:51]} 27. Qd3 {[%clk 0:00:34]}  b5 {[%clk 0:00:44]} 28. Bxf7 {[%clk 0:00:12]}  Rc3 {[%clk 0:00:41]} 29. Bxh5 {[%clk 0:00:10]}  Rxd3+ {[%clk 0:00:40]} 30. Kxd3 {[%clk 0:00:11]}  Qc3+ {[%clk 0:00:39]} 31. Ke2 {[%clk 0:00:11]}  Qxc2+ {[%clk 0:00:38]} 32. Ke3 {[%clk 0:00:12]}  Qc3+ {[%clk 0:00:37]} 33. Kf4 {[%clk 0:00:12]}  Nf8 {[%clk 0:00:36]} 34. Bf7 {[%clk 0:00:12]}  Nd7 {[%clk 0:00:27]} 35. h5 {[%clk 0:00:11]}  Ne5 {[%clk 0:00:28]} 36. h6 {[%clk 0:00:12]}  Qxf3# {[%clk 0:00:26]} 0-1

[Event "December 19 Early 2023"]
[Site "https://www.chess.com"]
[Date "2023.12.19"]
[Round "3"]
[White "Negron Lizarazo, Juan Sebastian"]
[Black "Recuero Guerra, Javier"]
[Result "1-0"]
[Board "230"]
[TimeControl "180+1"]
[WhiteFideId "3936910"]
[BlackFideId "2254085"]
[WhiteElo "1647"]
[BlackElo "2208"]
[WhiteTeam "COL"]
[BlackTeam "ESP"]
[WhiteClock "0:00:41"]
[BlackClock "0:00:00"]

1. e4 {[%clk 0:03:00]}  c5 {[%clk 0:02:58]} 2. Nc3 {[%clk 0:03:00]}  a6 {[%clk 0:02:56]} 3. g3 {[%clk 0:03:00]}  b5 {[%clk 0:02:55]} 4. Bg2 {[%clk 0:03:01]}  Bb7 {[%clk 0:02:55]} 5. d3 {[%clk 0:03:00]}  e6 {[%clk 0:02:55]} 6. Be3 {[%clk 0:03:00]}  Nc6 {[%clk 0:02:55]} 7. Nf3 {[%clk 0:02:55]}  Nf6 {[%clk 0:02:50]} 8. h3 {[%clk 0:02:54]}  d5 {[%clk 0:02:45]} 9. exd5 {[%clk 0:02:42]}  exd5 {[%clk 0:02:46]} 10. d4 {[%clk 0:02:41]}  c4 {[%clk 0:02:33]} 11. O-O {[%clk 0:02:30]}  Be7 {[%clk 0:02:32]} 12. Re1 {[%clk 0:02:28]}  O-O {[%clk 0:02:31]} 13. Bf4 {[%clk 0:02:26]}  Bd6 {[%clk 0:02:28]} 14. Ne5 {[%clk 0:02:25]}  Ne7 {[%clk 0:01:49]} 15. Bg5 {[%clk 0:02:12]}  b4 {[%clk 0:01:16]} 16. Ne2 {[%clk 0:01:55]}  Nd7 {[%clk 0:00:56]} 17. Nxc4 {[%clk 0:01:43]}  dxc4 {[%clk 0:00:19]} 18. Bxb7 {[%clk 0:01:42]}  Rb8 {[%clk 0:00:20]} 19. Bg2 {[%clk 0:01:42]}  f6 {[%clk 0:00:18]} 20. Bf4 {[%clk 0:01:42]}  Qc7 {[%clk 0:00:19]} 21. Bxd6 {[%clk 0:01:41]}  Qxd6 {[%clk 0:00:20]} 22. f4 {[%clk 0:01:39]}  Nf5 {[%clk 0:00:18]} 23. Kf2 {[%clk 0:01:35]}  Rfe8 {[%clk 0:00:17]} 24. c3 {[%clk 0:01:29]}  bxc3 {[%clk 0:00:12]} 25. bxc3 {[%clk 0:01:30]}  Ne3 {[%clk 0:00:12]} 26. Qd2 {[%clk 0:01:30]}  Nxg2 {[%clk 0:00:09]} 27. Kxg2 {[%clk 0:01:29]}  Qd5+ {[%clk 0:00:10]} 28. Kf2 {[%clk 0:01:28]}  f5 {[%clk 0:00:10]} 29. Ng1 {[%clk 0:01:28]}  Nf6 {[%clk 0:00:10]} 30. Qc2 {[%clk 0:01:24]}  Ne4+ {[%clk 0:00:10]} 31. Kg2 {[%clk 0:01:20]}  Nxc3+ {[%clk 0:00:08]} 32. Nf3 {[%clk 0:01:19]}  Ne4 {[%clk 0:00:06]} 33. Rac1 {[%clk 0:01:18]}  c3 {[%clk 0:00:06]} 34. Re3 {[%clk 0:01:14]}  Rb2 {[%clk 0:00:05]} 35. Rxc3 {[%clk 0:01:11]}  Rxc2+ {[%clk 0:00:05]} 36. R3xc2 {[%clk 0:01:11]}  h6 {[%clk 0:00:04]} 37. Rc7 {[%clk 0:01:07]}  Qxa2+ {[%clk 0:00:04]} 38. R1c2 {[%clk 0:01:05]}  Qd5 {[%clk 0:00:03]} 39. Ra7 {[%clk 0:01:04]}  a5 {[%clk 0:00:02]} 40. Rb7 {[%clk 0:01:01]}  Rd8 {[%clk 0:00:02]} 41. Rcb2 {[%clk 0:01:00]}  a4 {[%clk 0:00:02]} 42. R7b5 {[%clk 0:01:00]}  Qd6 {[%clk 0:00:01]} 43. Rb6 {[%clk 0:00:56]}  Qf8 {[%clk 0:00:02]} 44. Ne5 {[%clk 0:00:53]}  a3 {[%clk 0:00:02]} 45. Ra2 {[%clk 0:00:51]}  Rxd4 {[%clk 0:00:02]} 46. Rb3 {[%clk 0:00:48]}  Qa8 {[%clk 0:00:01]} 47. Rbxa3 {[%clk 0:00:43]}  Nc5+ {[%clk 0:00:00]} 48. Rxa8+ {[%clk 0:00:41]} 1-0

[Event "December 19 Early 2023"]
[Site "https://www.chess.com"]
[Date "2023.12.19"]
[Round "3"]
[White "Khromkin, Andrey"]
[Black "Donatti, Alvaro"]
[Result "1-0"]
[Board "233"]
[TimeControl "180+1"]
[WhiteFideId "4154126"]
[BlackFideId "3000303"]
[WhiteElo "2387"]
[BlackElo "2138"]
[WhiteTeam "RUS"]
[BlackTeam "URU"]
[WhiteClock "0:02:12"]
[BlackClock "0:01:10"]

1. d4 {[%clk 0:02:59]}  Nf6 {[%clk 0:02:58]} 2. c4 {[%clk 0:03:00]}  c5 {[%clk 0:02:56]} 3. Nf3 {[%clk 0:03:01]}  g6 {[%clk 0:02:54]} 4. Nc3 {[%clk 0:03:00]}  cxd4 {[%clk 0:02:52]} 5. Nxd4 {[%clk 0:02:59]}  Bg7 {[%clk 0:02:53]} 6. g3 {[%clk 0:02:59]}  O-O {[%clk 0:02:52]} 7. Bg2 {[%clk 0:03:00]}  Nc6 {[%clk 0:02:52]} 8. O-O {[%clk 0:03:00]}  a6 {[%clk 0:02:51]} 9. b3 {[%clk 0:02:58]}  Qc7 {[%clk 0:02:45]} 10. Bb2 {[%clk 0:02:58]}  d6 {[%clk 0:02:44]} 11. Rc1 {[%clk 0:02:58]}  Bd7 {[%clk 0:02:33]} 12. Nd5 {[%clk 0:02:57]}  Nxd5 {[%clk 0:02:31]} 13. cxd5 {[%clk 0:02:56]}  Qb6 {[%clk 0:02:18]} 14. dxc6 {[%clk 0:02:52]}  bxc6 {[%clk 0:02:16]} 15. Qd2 {[%clk 0:02:47]}  Rac8 {[%clk 0:02:06]} 16. Nf3 {[%clk 0:02:33]}  c5 {[%clk 0:02:02]} 17. Bxg7 {[%clk 0:02:31]}  Kxg7 {[%clk 0:02:02]} 18. Ne5 {[%clk 0:02:28]}  Be6 {[%clk 0:01:56]} 19. Nc4 {[%clk 0:02:28]}  Qb5 {[%clk 0:01:50]} 20. Bd5 {[%clk 0:02:27]}  Bd7 {[%clk 0:01:47]} 21. Rfd1 {[%clk 0:02:27]}  Qb8 {[%clk 0:01:36]} 22. Bf3 {[%clk 0:02:18]}  Be6 {[%clk 0:01:33]} 23. h4 {[%clk 0:02:17]}  Qb5 {[%clk 0:01:27]} 24. h5 {[%clk 0:02:14]}  Ra8 {[%clk 0:01:17]} 25. Ne3 {[%clk 0:02:13]}  a5 {[%clk 0:01:10]} 26. Bxa8 {[%clk 0:02:12]} 1-0

[Event "December 19 Early 2023"]
[Site "https://www.chess.com"]
[Date "2023.12.19"]
[Round "3"]
[White "Mende, Andreas"]
[Black "Zhuk, Valeriy"]
[Result "1/2-1/2"]
[Board "238"]
[TimeControl "180+1"]
[WhiteFideId "4631102"]
[BlackFideId "24151254"]
[WhiteElo "2065"]
[BlackElo "2148"]
[WhiteTeam "GER"]
[BlackTeam "RUS"]
[WhiteClock "0:00:39"]
[BlackClock "0:00:09"]

1. c4 {[%clk 0:03:00]}  Nf6 {[%clk 0:02:51]} 2. g3 {[%clk 0:03:00]}  g6 {[%clk 0:02:46]} 3. Bg2 {[%clk 0:02:59]}  Bg7 {[%clk 0:02:46]} 4. Nc3 {[%clk 0:02:59]}  O-O {[%clk 0:02:46]} 5. e4 {[%clk 0:02:59]}  d6 {[%clk 0:02:44]} 6. Nge2 {[%clk 0:02:59]}  c5 {[%clk 0:02:36]} 7. O-O {[%clk 0:02:59]}  Nc6 {[%clk 0:02:36]} 8. d3 {[%clk 0:02:59]}  Bg4 {[%clk 0:02:33]} 9. h3 {[%clk 0:02:58]}  Bd7 {[%clk 0:02:23]} 10. Be3 {[%clk 0:02:56]}  Ne8 {[%clk 0:02:18]} 11. d4 {[%clk 0:02:51]}  cxd4 {[%clk 0:02:18]} 12. Nxd4 {[%clk 0:02:50]}  Nc7 {[%clk 0:02:18]} 13. Rc1 {[%clk 0:02:47]}  Nxd4 {[%clk 0:02:15]} 14. Bxd4 {[%clk 0:02:46]}  Bxd4 {[%clk 0:02:15]} 15. Qxd4 {[%clk 0:02:45]}  Ne6 {[%clk 0:02:14]} 16. Qe3 {[%clk 0:02:32]}  Bc6 {[%clk 0:01:55]} 17. b4 {[%clk 0:02:23]}  b6 {[%clk 0:01:53]} 18. Nd5 {[%clk 0:02:19]}  Bb7 {[%clk 0:01:40]} 19. f4 {[%clk 0:02:13]}  f6 {[%clk 0:01:29]} 20. f5 {[%clk 0:02:11]}  Ng5 {[%clk 0:01:04]} 21. h4 {[%clk 0:02:06]}  Nf7 {[%clk 0:00:47]} 22. fxg6 {[%clk 0:02:06]}  hxg6 {[%clk 0:00:47]} 23. Bh3 {[%clk 0:02:05]}  Bxd5 {[%clk 0:00:42]} 24. exd5 {[%clk 0:01:59]}  Kg7 {[%clk 0:00:40]} 25. Rfe1 {[%clk 0:01:51]}  Ne5 {[%clk 0:00:40]} 26. Be6 {[%clk 0:01:48]}  a5 {[%clk 0:00:40]} 27. c5 {[%clk 0:01:38]}  bxc5 {[%clk 0:00:29]} 28. bxc5 {[%clk 0:01:38]}  dxc5 {[%clk 0:00:29]} 29. Rxc5 {[%clk 0:01:30]}  Qd6 {[%clk 0:00:29]} 30. Rec1 {[%clk 0:01:26]}  Rab8 {[%clk 0:00:28]} 31. Rxa5 {[%clk 0:01:20]}  Rb2 {[%clk 0:00:28]} 32. Ra7 {[%clk 0:01:05]}  Qb4 {[%clk 0:00:20]} 33. Qc5 {[%clk 0:00:49]}  Qxc5+ {[%clk 0:00:17]} 34. Rxc5 {[%clk 0:00:48]}  Re8 {[%clk 0:00:17]} 35. Rcc7 {[%clk 0:00:48]}  Nf3+ {[%clk 0:00:09]} 36. Kf1 {[%clk 0:00:47]}  Rd2 {[%clk 0:00:10]} 37. Rxe7+ {[%clk 0:00:45]}  Rxe7 {[%clk 0:00:09]} 38. Rxe7+ {[%clk 0:00:45]}  Kh6 {[%clk 0:00:09]} 39. Bg8 {[%clk 0:00:40]}  Nh2+ {[%clk 0:00:07]} 40. Ke1 {[%clk 0:00:39]}  Nf3+ {[%clk 0:00:07]} 41. Kf1 {[%clk 0:00:39]}  Nh2+ {[%clk 0:00:08]} 42. Ke1 {[%clk 0:00:39]}  Nf3+ {[%clk 0:00:09]} 43. Kf1 {[%clk 0:00:39]} 1/2-1/2

[Event "December 19 Early 2023"]
[Site "https://www.chess.com"]
[Date "2023.12.19"]
[Round "3"]
[White "Kolmagorov, Alexey"]
[Black "Quilter, Thomas A"]
[Result "1/2-1/2"]
[Board "239"]
[TimeControl "180+1"]
[WhiteFideId "34129402"]
[BlackFideId "408530"]
[WhiteElo "1989"]
[BlackElo "1962"]
[WhiteTeam "RUS"]
[BlackTeam "ENG"]
[WhiteClock "0:00:08"]
[BlackClock "0:00:14"]

1. d4 {[%clk 0:03:00]}  d5 {[%clk 0:02:59]} 2. c4 {[%clk 0:03:01]}  e6 {[%clk 0:02:59]} 3. g3 {[%clk 0:03:01]}  c5 {[%clk 0:02:51]} 4. cxd5 {[%clk 0:03:01]}  cxd4 {[%clk 0:02:51]} 5. Bg2 {[%clk 0:02:28]}  Nf6 {[%clk 0:02:29]} 6. Nf3 {[%clk 0:02:14]}  exd5 {[%clk 0:02:14]} 7. O-O {[%clk 0:02:11]}  Nc6 {[%clk 0:02:14]} 8. Nxd4 {[%clk 0:02:10]}  Bc5 {[%clk 0:02:14]} 9. Nb3 {[%clk 0:02:00]}  Bb6 {[%clk 0:02:07]} 10. Bg5 {[%clk 0:01:57]}  Be6 {[%clk 0:02:03]} 11. Nc3 {[%clk 0:01:31]}  h6 {[%clk 0:01:54]} 12. Bxf6 {[%clk 0:01:26]}  Qxf6 {[%clk 0:01:54]} 13. Nxd5 {[%clk 0:01:19]}  Qxb2 {[%clk 0:01:45]} 14. Nxb6 {[%clk 0:00:54]}  axb6 {[%clk 0:01:45]} 15. Qd6 {[%clk 0:00:54]}  Bxb3 {[%clk 0:01:06]} 16. Bxc6+ {[%clk 0:00:50]}  bxc6 {[%clk 0:01:06]} 17. Qxc6+ {[%clk 0:00:45]}  Ke7 {[%clk 0:01:07]} 18. Qb7+ {[%clk 0:00:41]}  Kf6 {[%clk 0:01:05]} 19. Qxb6+ {[%clk 0:00:41]}  Kg5 {[%clk 0:00:50]} 20. h4+ {[%clk 0:00:34]}  Kg4 {[%clk 0:00:42]} 21. Qxb3 {[%clk 0:00:25]}  Qxe2 {[%clk 0:00:25]} 22. Qxf7 {[%clk 0:00:21]}  Rhf8 {[%clk 0:00:20]} 23. Qg6+ {[%clk 0:00:17]}  Kh3 {[%clk 0:00:20]} 24. Rae1 {[%clk 0:00:13]}  Qf3 {[%clk 0:00:18]} 25. Qe6+ {[%clk 0:00:13]}  Rf5 {[%clk 0:00:18]} 26. Qe4 {[%clk 0:00:09]}  Rxa2 {[%clk 0:00:12]} 27. Qxf3 {[%clk 0:00:07]}  Rxf3 {[%clk 0:00:12]} 28. Re7 {[%clk 0:00:07]}  Rxg3+ {[%clk 0:00:12]} 29. fxg3 {[%clk 0:00:06]}  Rg2+ {[%clk 0:00:11]} 30. Kh1 {[%clk 0:00:07]}  Rh2+ {[%clk 0:00:12]} 31. Kg1 {[%clk 0:00:08]}  Rg2+ {[%clk 0:00:12]} 32. Kh1 {[%clk 0:00:08]}  Rh2+ {[%clk 0:00:13]} 33. Kg1 {[%clk 0:00:08]}  Rg2+ {[%clk 0:00:14]} 1/2-1/2

[Event "December 19 Early 2023"]
[Site "https://www.chess.com"]
[Date "2023.12.19"]
[Round "3"]
[White "Hoffmann, Asa"]
[Black "Navyblue1"]
[Result "1-0"]
[Board "241"]
[TimeControl "180+1"]
[WhiteFideId "2001470"]
[WhiteElo "2117"]
[BlackElo "2039"]
[WhiteTeam "USA"]
[WhiteClock "0:01:17"]
[BlackClock "0:00:05"]

1. d4 {[%clk 0:02:49]}  Nf6 {[%clk 0:02:55]} 2. Bg5 {[%clk 0:02:48]}  Ne4 {[%clk 0:02:55]} 3. Bf4 {[%clk 0:02:48]}  c5 {[%clk 0:02:52]} 4. f3 {[%clk 0:02:48]}  Qa5+ {[%clk 0:02:37]} 5. c3 {[%clk 0:02:47]}  Nf6 {[%clk 0:02:27]} 6. d5 {[%clk 0:02:47]}  d6 {[%clk 0:02:05]} 7. e4 {[%clk 0:02:46]}  b5 {[%clk 0:01:49]} 8. Na3 {[%clk 0:02:45]}  a6 {[%clk 0:01:19]} 9. Be2 {[%clk 0:02:43]}  Nbd7 {[%clk 0:00:37]} 10. Nh3 {[%clk 0:02:40]}  g6 {[%clk 0:00:19]} 11. Qd2 {[%clk 0:02:36]}  h5 {[%clk 0:00:17]} 12. O-O {[%clk 0:02:35]}  Bg7 {[%clk 0:00:17]} 13. Ng5 {[%clk 0:02:32]}  Bb7 {[%clk 0:00:15]} 14. Rfe1 {[%clk 0:02:11]}  Qb6 {[%clk 0:00:14]} 15. Nc2 {[%clk 0:02:06]}  Qc7 {[%clk 0:00:13]} 16. Rac1 {[%clk 0:02:04]}  O-O {[%clk 0:00:12]} 17. h3 {[%clk 0:01:58]}  Ne5 {[%clk 0:00:11]} 18. Ne3 {[%clk 0:01:54]}  Rad8 {[%clk 0:00:09]} 19. c4 {[%clk 0:01:50]}  bxc4 {[%clk 0:00:08]} 20. Nxc4 {[%clk 0:01:49]}  Nfd7 {[%clk 0:00:08]} 21. b3 {[%clk 0:01:44]}  Nxc4 {[%clk 0:00:08]} 22. Bxc4 {[%clk 0:01:42]}  Ne5 {[%clk 0:00:08]} 23. Bf1 {[%clk 0:01:41]}  Qb6 {[%clk 0:00:07]} 24. Rb1 {[%clk 0:01:35]}  a5 {[%clk 0:00:07]} 25. a3 {[%clk 0:01:34]}  Ba6 {[%clk 0:00:07]} 26. b4 {[%clk 0:01:32]}  axb4 {[%clk 0:00:07]} 27. axb4 {[%clk 0:01:32]}  Bxf1 {[%clk 0:00:08]} 28. Rxf1 {[%clk 0:01:30]}  cxb4+ {[%clk 0:00:08]} 29. Be3 {[%clk 0:01:29]}  Qc7 {[%clk 0:00:08]} 30. Rfc1 {[%clk 0:01:28]}  Qd7 {[%clk 0:00:07]} 31. Qxb4 {[%clk 0:01:27]}  Rb8 {[%clk 0:00:07]} 32. Qxb8 {[%clk 0:01:25]}  Rxb8 {[%clk 0:00:07]} 33. Rxb8+ {[%clk 0:01:25]}  Bf8 {[%clk 0:00:08]} 34. Rcc8 {[%clk 0:01:24]}  Kg7 {[%clk 0:00:07]} 35. Rxf8 {[%clk 0:01:22]}  Qa4 {[%clk 0:00:07]} 36. Rg8+ {[%clk 0:01:19]}  Kf6 {[%clk 0:00:05]} 37. Nh7# {[%clk 0:01:17]} 1-0

[Event "December 19 Early 2023"]
[Site "https://www.chess.com"]
[Date "2023.12.19"]
[Round "3"]
[White "Dominguez Rincon, Miller Duvan"]
[Black "Martin Barcelo, Carles"]
[Result "1-0"]
[Board "242"]
[TimeControl "180+1"]
[WhiteFideId "4406583"]
[BlackFideId "24561444"]
[WhiteElo "1960"]
[BlackElo "2135"]
[WhiteTeam "COL"]
[BlackTeam "ESP"]
[WhiteClock "0:01:47"]
[BlackClock "0:02:20"]

1. e4 {[%clk 0:03:00]}  e5 {[%clk 0:02:58]} 2. Nf3 {[%clk 0:03:00]}  Nf6 {[%clk 0:02:58]} 3. Nxe5 {[%clk 0:03:00]}  d6 {[%clk 0:02:59]} 4. Nf3 {[%clk 0:03:00]}  Nxe4 {[%clk 0:02:59]} 5. Nc3 {[%clk 0:03:00]}  Nf6 {[%clk 0:02:58]} 6. d4 {[%clk 0:02:59]}  g6 {[%clk 0:02:59]} 7. Bg5 {[%clk 0:02:59]}  Bg7 {[%clk 0:02:58]} 8. Qe2+ {[%clk 0:02:58]}  Kd7 {[%clk 0:02:57]} 9. O-O-O {[%clk 0:02:56]}  c6 {[%clk 0:02:56]} 10. Ne5+ {[%clk 0:02:46]}  Kc7 {[%clk 0:02:45]} 11. Nxf7 {[%clk 0:02:45]}  Qe8 {[%clk 0:02:42]} 12. Nxh8 {[%clk 0:02:43]}  Qxh8 {[%clk 0:02:43]} 13. Qe7+ {[%clk 0:02:38]}  Nbd7 {[%clk 0:02:43]} 14. d5 {[%clk 0:02:26]}  Nxd5 {[%clk 0:02:34]} 15. Rxd5 {[%clk 0:02:15]}  cxd5 {[%clk 0:02:35]} 16. Nb5+ {[%clk 0:02:10]}  Kb6 {[%clk 0:02:27]} 17. Qxd6+ {[%clk 0:02:09]}  Ka5 {[%clk 0:02:27]} 18. Bd2+ {[%clk 0:01:53]}  Bc3 {[%clk 0:02:25]} 19. Bxc3+ {[%clk 0:01:52]}  Qxc3 {[%clk 0:02:26]} 20. Nxc3 {[%clk 0:01:52]}  b5 {[%clk 0:02:20]} 21. b4# {[%clk 0:01:47]} 1-0

[Event "December 19 Early 2023"]
[Site "https://www.chess.com"]
[Date "2023.12.19"]
[Round "3"]
[White "Bernat, David"]
[Black "SujanaLohani"]
[Result "1-0"]
[Board "243"]
[TimeControl "180+1"]
[WhiteFideId "2099225"]
[WhiteElo "1894"]
[BlackElo "2021"]
[WhiteTeam "USA"]
[WhiteClock "0:01:17"]
[BlackClock "0:01:32"]

1. c4 {[%clk 0:03:00]}  g6 {[%clk 0:02:56]} 2. Nc3 {[%clk 0:03:01]}  Bg7 {[%clk 0:02:56]} 3. g3 {[%clk 0:03:02]}  a6 {[%clk 0:02:55]} 4. Bg2 {[%clk 0:03:02]}  d6 {[%clk 0:02:54]} 5. d3 {[%clk 0:03:01]}  e5 {[%clk 0:02:51]} 6. e4 {[%clk 0:02:59]}  b6 {[%clk 0:02:50]} 7. Nge2 {[%clk 0:02:59]}  Bb7 {[%clk 0:02:50]} 8. O-O {[%clk 0:02:59]}  Nd7 {[%clk 0:02:49]} 9. f4 {[%clk 0:03:00]}  Ngf6 {[%clk 0:02:44]} 10. h3 {[%clk 0:02:57]}  O-O {[%clk 0:02:43]} 11. f5 {[%clk 0:02:57]}  c5 {[%clk 0:02:40]} 12. g4 {[%clk 0:02:57]}  Nb8 {[%clk 0:02:35]} 13. g5 {[%clk 0:02:52]}  Ne8 {[%clk 0:02:33]} 14. f6 {[%clk 0:02:49]}  Bh8 {[%clk 0:02:33]} 15. Ng3 {[%clk 0:02:48]}  Nc7 {[%clk 0:02:25]} 16. Qg4 {[%clk 0:02:45]}  Bc8 {[%clk 0:02:20]} 17. Qh4 {[%clk 0:02:44]}  Nc6 {[%clk 0:02:15]} 18. Be3 {[%clk 0:02:33]}  Nd4 {[%clk 0:02:15]} 19. Bxd4 {[%clk 0:02:30]}  cxd4 {[%clk 0:02:14]} 20. Nd5 {[%clk 0:02:26]}  Nxd5 {[%clk 0:02:14]} 21. cxd5 {[%clk 0:02:26]}  Bd7 {[%clk 0:02:11]} 22. Rf2 {[%clk 0:02:18]}  b5 {[%clk 0:02:04]} 23. Raf1 {[%clk 0:02:16]}  Rc8 {[%clk 0:02:04]} 24. Qh6 {[%clk 0:01:54]}  Qa5 {[%clk 0:02:03]} 25. Nf5 {[%clk 0:01:43]}  Bxf5 {[%clk 0:01:50]} 26. exf5 {[%clk 0:01:44]}  Qxa2 {[%clk 0:01:48]} 27. fxg6 {[%clk 0:01:38]}  hxg6 {[%clk 0:01:46]} 28. Be4 {[%clk 0:01:38]}  Rfd8 {[%clk 0:01:33]} 29. Bxg6 {[%clk 0:01:18]}  fxg6 {[%clk 0:01:32]} 30. f7# {[%clk 0:01:17]} 1-0

[Event "December 19 Early 2023"]
[Site "https://www.chess.com"]
[Date "2023.12.19"]
[Round "3"]
[White "Kostiukov, Alexandr"]
[Black "Bogumil, Tatiana"]
[Result "1-0"]
[Board "245"]
[TimeControl "180+1"]
[WhiteFideId "14108100"]
[BlackFideId "4110579"]
[WhiteElo "2112"]
[BlackElo "1853"]
[WhiteTeam "UKR"]
[BlackTeam "RUS"]
[WhiteClock "0:00:34"]
[BlackClock "0:00:00"]

1. g3 {[%clk 0:02:59]}  Nf6 {[%clk 0:02:57]} 2. Bg2 {[%clk 0:02:59]}  g6 {[%clk 0:02:55]} 3. c4 {[%clk 0:02:58]}  Bg7 {[%clk 0:02:53]} 4. Nf3 {[%clk 0:02:59]}  O-O {[%clk 0:02:44]} 5. O-O {[%clk 0:03:00]}  c5 {[%clk 0:02:44]} 6. d4 {[%clk 0:03:00]}  Na6 {[%clk 0:02:30]} 7. Nc3 {[%clk 0:02:57]}  d6 {[%clk 0:02:29]} 8. dxc5 {[%clk 0:02:39]}  Nxc5 {[%clk 0:02:26]} 9. Nd4 {[%clk 0:02:35]}  Rb8 {[%clk 0:02:17]} 10. b3 {[%clk 0:02:31]}  a6 {[%clk 0:02:13]} 11. Bb2 {[%clk 0:02:31]}  Re8 {[%clk 0:02:06]} 12. Qd2 {[%clk 0:02:25]}  Bd7 {[%clk 0:02:03]} 13. Rfd1 {[%clk 0:02:15]}  Qc8 {[%clk 0:01:56]} 14. Rac1 {[%clk 0:02:12]}  Bh3 {[%clk 0:01:52]} 15. Bh1 {[%clk 0:02:08]}  Bf5 {[%clk 0:01:44]} 16. Nxf5 {[%clk 0:02:01]}  Qxf5 {[%clk 0:01:45]} 17. f3 {[%clk 0:01:39]}  b5 {[%clk 0:01:33]} 18. e4 {[%clk 0:01:34]}  Qh5 {[%clk 0:01:22]} 19. Nd5 {[%clk 0:01:21]}  bxc4 {[%clk 0:01:05]} 20. Nxf6+ {[%clk 0:01:11]}  Bxf6 {[%clk 0:00:57]} 21. Bxf6 {[%clk 0:01:10]}  exf6 {[%clk 0:00:42]} 22. Rxc4 {[%clk 0:01:08]}  Ne6 {[%clk 0:00:20]} 23. Qd5 {[%clk 0:00:59]}  Qxd5 {[%clk 0:00:16]} 24. Rxd5 {[%clk 0:00:58]}  Rb6 {[%clk 0:00:12]} 25. Bg2 {[%clk 0:00:51]}  Reb8 {[%clk 0:00:10]} 26. f4 {[%clk 0:00:47]}  Kf8 {[%clk 0:00:06]} 27. Kf2 {[%clk 0:00:47]}  Ke7 {[%clk 0:00:06]} 28. Ke3 {[%clk 0:00:44]}  R8b7 {[%clk 0:00:05]} 29. Bf3 {[%clk 0:00:42]}  h5 {[%clk 0:00:05]} 30. h4 {[%clk 0:00:41]}  Nc5 {[%clk 0:00:04]} 31. Kd4 {[%clk 0:00:37]}  Ne6+ {[%clk 0:00:04]} 32. Kc3 {[%clk 0:00:36]}  Ra7 {[%clk 0:00:00]} 33. Ra5 {[%clk 0:00:34]} 1-0

[Event "December 19 Early 2023"]
[Site "https://www.chess.com"]
[Date "2023.12.19"]
[Round "3"]
[White "Olcayoz, Gizem"]
[Black "Igel2023"]
[Result "1-0"]
[Board "246"]
[TimeControl "180+1"]
[WhiteFideId "6301444"]
[WhiteElo "1856"]
[BlackElo "2330"]
[WhiteTeam "TUR"]
[WhiteClock "0:00:33"]
[BlackClock "0:00:00"]

1. e4 {[%clk 0:03:00]}  e6 {[%clk 0:02:55]} 2. d4 {[%clk 0:03:00]}  d5 {[%clk 0:02:55]} 3. Nc3 {[%clk 0:03:00]}  dxe4 {[%clk 0:02:55]} 4. Nxe4 {[%clk 0:03:01]}  Nd7 {[%clk 0:02:55]} 5. Bd3 {[%clk 0:02:59]}  Ngf6 {[%clk 0:02:56]} 6. Qe2 {[%clk 0:02:56]}  Be7 {[%clk 0:02:50]} 7. Nf3 {[%clk 0:02:54]}  O-O {[%clk 0:02:50]} 8. Ng3 {[%clk 0:02:47]}  c5 {[%clk 0:02:49]} 9. c3 {[%clk 0:02:44]}  a6 {[%clk 0:02:46]} 10. O-O {[%clk 0:02:43]}  b5 {[%clk 0:02:45]} 11. Rd1 {[%clk 0:02:43]}  Qc7 {[%clk 0:02:43]} 12. dxc5 {[%clk 0:02:25]}  Nxc5 {[%clk 0:02:41]} 13. Bc2 {[%clk 0:02:22]}  Bb7 {[%clk 0:02:41]} 14. Be3 {[%clk 0:02:21]}  Nd5 {[%clk 0:02:30]} 15. Bd4 {[%clk 0:02:15]}  Nf4 {[%clk 0:00:55]} 16. Qe3 {[%clk 0:02:08]}  f6 {[%clk 0:00:37]} 17. Qe1 {[%clk 0:01:08]}  e5 {[%clk 0:00:36]} 18. Be3 {[%clk 0:01:08]}  Bxf3 {[%clk 0:00:31]} 19. gxf3 {[%clk 0:01:09]}  Nce6 {[%clk 0:00:07]} 20. Nf5 {[%clk 0:01:06]}  Rfd8 {[%clk 0:00:07]} 21. Nxe7+ {[%clk 0:00:52]}  Qxe7 {[%clk 0:00:08]} 22. Bb3 {[%clk 0:00:47]}  Kh8 {[%clk 0:00:08]} 23. Qf1 {[%clk 0:00:43]}  Qe8 {[%clk 0:00:07]} 24. Re1 {[%clk 0:00:40]}  Qg6+ {[%clk 0:00:06]} 25. Kh1 {[%clk 0:00:39]}  Qh5 {[%clk 0:00:06]} 26. Bd1 {[%clk 0:00:32]}  Rxd1 {[%clk 0:00:02]} 27. Bxf4 {[%clk 0:00:33]}  Qxf3+ {[%clk 0:00:00]} 28. Qg2 {[%clk 0:00:33]} 1-0